Workbook

Sheet 综合成绩
A1: 铜仁市市直卫生健康事业单位2019年公开招聘新增人员考试面试人员名单
A2: 序号 | B2: 报考单位 | C2: 报考职位及代码 | D2: 姓名 | E2: 准考证号 | F2: 笔试成绩 | G2: 笔试成绩（60%） | H2: 面试成绩 | I2: 面试成绩（40%） | J2: 综合成绩
A3: 1 | B3: 铜仁市人民医院 | C3: 02外科医师 | D3: 程坤 | E3: 20190622033 | F3: 81.25 | G3: =F3*0.6 -> 48.75 | H3: 85.00 | I3: =H3*0.4 -> 34.00 | J3: =G3+I3 -> 82.75
A4: 2 | B4: 铜仁市人民医院 | C4: 02外科医师 | D4: 张虹雨 | E4: 20190622042 | F4: 79.50 | G4: =F4*0.6 -> 47.70 | H4: 88.33 | I4: =H4*0.4 -> 35.33 | J4: =G4+I4 -> 83.03
A5: 3 | B5: 铜仁市人民医院 | C5: 02外科医师 | D5: 王婷 | E5: 20190622031 | F5: 78.75 | G5: 47.25 | H5: 86.00 | I5: 34.40 | J5: 81.65
A6: 4 | B6: 铜仁市人民医院 | C6: 02外科医师 | D6: 王松 | E6: 20190622032 | F6: 72.00 | G6: 43.20 | H6: 缺考 | I6: 缺考 | J6: =G6 -> 43.20
A7: 5 | B7: 铜仁市人民医院 | C7: 02外科医师 | D7: 孙洁 | E7: 20190622043 | F7: 69.00 | G7: 41.40 | H7: 84.00 | I7: 33.60 | J7: 75.00
A8: 6 | B8: 铜仁市人民医院 | C8: 02外科医师 | D8: 刘宇 | E8: 20190622037 | F8: 64.75 | G8: 38.85 | H8: 缺考 | I8: 缺考 | J8: =G8 -> 38.85
A9: 7 | B9: 铜仁市人民医院 | C9: 04内科医师 | D9: 詹琴 | E9: 20190622377 | F9: 80.53 | G9: 48.32 | H9: 85.00 | I9: 34.00 | J9: 82.32
A10: 8 | B10: 铜仁市人民医院 | C10: 04内科医师 | D10: 代红 | E10: 20190622371 | F10: 73.05 | G10: 43.83 | H10: 87.33 | I10: 34.93 | J10: 78.76
A11: 9 | B11: 铜仁市人民医院 | C11: 04内科医师 | D11: 张正香 | E11: 20190622370 | F11: 72.95 | G11: 43.77 | H11: 85.33 | I11: 34.13 | J11: 77.90
A12: 10 | B12: 铜仁市人民医院 | C12: 04内科医师 | D12: 陈登学 | E12: 20190622367 | F12: 67.60 | G12: 40.56 | H12: 缺考 | I12: 缺考 | J12: =G12 -> 40.56
A13: 11 | B13: 铜仁市人民医院 | C13: 04内科医师 | D13: 龙凯 | E13: 20190622368 | F13: 64.80 | G13: 38.88 | H13: 缺考 | I13: 缺考 | J13: =G13 -> 38.88
A14: 12 | B14: 铜仁市人民医院 | C14: 04内科医师 | D14: 凡勇江 | E14: 20190622380 | F14: 64.68 | G14: 38.81 | H14: 83.83 | I14: 33.53 | J14: 72.34
A15: 13 | B15: 铜仁市人民医院 | C15: 06★妇产科医师 | D15: 郎凤琴 | E15: 20190622389 | F15: 64.75 | G15: 38.85 | H15: 87.00 | I15: 34.80 | J15: 73.65
A16: 14 | B16: 铜仁市人民医院 | C16: 06★妇产科医师 | D16: 向欣 | E16: 20190622388 | F16: 62.25 | G16: 37.35 | H16: 83.33 | I16: 33.33 | J16: 70.68
A17: 15 | B17: 铜仁市人民医院 | C17: 06★妇产科医师 | D17: 黄洁文 | E17: 20190622393 | F17: 61.00 | G17: 36.60 | H17: 88.67 | I17: 35.47 | J17: 72.07
A18: 16 | B18: 铜仁市人民医院 | C18: 08★麻醉医师 | D18: 王丹 | E18: 20190622418 | F18: 59.94 | G18: 35.96 | H18: 89.00 | I18: 35.60 | J18: 71.56
A19: 17 | B19: 铜仁市人民医院 | C19: 08★麻醉医师 | D19: 李鹏鹏 | E19: 20190622416 | F19: 57.94 | G19: 34.76 | H19: 90.67 | I19: 36.27 | J19: 71.03
A20: 18 | B20: 铜仁市人民医院 | C20: 08★麻醉医师 | D20: 戴爽 | E20: 20190622422 | F20: 54.33 | G20: 32.60 | H20: 88.33 | I20: 35.33 | J20: 67.93
A21: 19 | B21: 铜仁市人民医院 | C21: 10★超声医师 | D21: 姚冉 | E21: 20190622061 | F21: 62.25 | G21: 37.35 | H21: 88.00 | I21: 35.20 | J21: 72.55
A22: 20 | B22: 铜仁市人民医院 | C22: 10★超声医师 | D22: 安智慧 | E22: 20190622063 | F22: 58.75 | G22: 35.25 | H22: 82.67 | I22: 33.07 | J22: 68.32
A23: 21 | B23: 铜仁市人民医院 | C23: 10★超声医师 | D23: 蒋思迪 | E23: 20190622064 | F23: 50.50 | G23: 30.30 | H23: 84.67 | I23: 33.87 | J23: 64.17
A24: 22 | B24: 铜仁市人民医院 | C24: 12★儿科医师 | D24: 柯丽芳 | E24: 20190622067 | F24: 71.75 | G24: 43.05 | H24: 83.00 | I24: 33.20 | J24: 76.25
A25: 23 | B25: 铜仁市人民医院 | C25: 12★儿科医师 | D25: 张真 | E25: 20190622075 | F25: 71.25 | G25: 42.75 | H25: 85.67 | I25: 34.27 | J25: 77.02
A26: 24 | B26: 铜仁市人民医院 | C26: 12★儿科医师 | D26: 汪鑫洋 | E26: 20190622066 | F26: 67.25 | G26: 40.35 | H26: 86.33 | I26: 34.53 | J26: 74.88
A27: 25 | B27: 铜仁市人民医院 | C27: 12★儿科医师 | D27: 王杉 | E27: 20190622084 | F27: 66.00 | G27: 39.60 | H27: 85.50 | I27: 34.20 | J27: 73.80
A28: 26 | B28: 铜仁市人民医院 | C28: 12★儿科医师 | D28: 周慧 | E28: 20190622077 | F28: 64.25 | G28: 38.55 | H28: 缺考 | I28: 缺考 | J28: =G28 -> 38.55
A29: 27 | B29: 铜仁市人民医院 | C29: 12★儿科医师 | D29: 黄永倚 | E29: 20190622076 | F29: 63.75 | G29: 38.25 | H29: 84.33 | I29: 33.73 | J29: 71.98
A30: 28 | B30: 铜仁市人民医院 | C30: 12★儿科医师 | D30: 任红 | E30: 20190622083 | F30: 63.00 | G30: 37.80 | H30: 缺考 | I30: 缺考 | J30: =G30 -> 37.80
A31: 29 | B31: 铜仁市人民医院 | C31: 12★儿科医师 | D31: 李黎 | E31: 20190622081 | F31: 62.50 | G31: 37.50 | H31: 84.00 | I31: 33.60 | J31: 71.10
A32: 30 | B32: 铜仁市人民医院 | C32: 12★儿科医师 | D32: 黄浩 | E32: 20190622065 | F32: 58.50 | G32: 35.10 | H32: 85.50 | I32: 34.20 | J32: 69.30
A33: 31 | B33: 铜仁市人民医院 | C33: 12★儿科医师 | D33: 刘涛 | E33: 20190622079 | F33: 58.00 | G33: 34.80 | H33: 82.67 | I33: 33.07 | J33: 67.87
A34: 32 | B34: 铜仁市人民医院 | C34: 12★儿科医师 | D34: 杨银仙 | E34: 20190622088 | F34: 57.25 | G34: 34.35 | H34: 83.67 | I34: 33.47 | J34: 67.82
A35: 33 | B35: 铜仁市人民医院 | C35: 12★儿科医师 | D35: 刘会玲 | E35: 20190622089 | F35: 56.25 | G35: 33.75 | H35: 83.00 | I35: 33.20 | J35: 66.95
A36: 34 | B36: 铜仁市人民医院 | C36: 13康复治疗师 | D36: 吴金花 | E36: 20190622286 | F36: 63.80 | G36: =F36*0.6 -> 38.28 | H36: 89.33 | I36: =H36*0.4 -> 35.73 | J36: =G36+I36 -> 74.01
A37: 35 | B37: 铜仁市人民医院 | C37: 13康复治疗师 | D37: 石慧 | E37: 20190622283 | F37: 61.80 | G37: 37.08 | H37: 88.00 | I37: 35.20 | J37: 72.28
A38: 36 | B38: 铜仁市人民医院 | C38: 13康复治疗师 | D38: 李明霜 | E38: 20190622273 | F38: 60.50 | G38: 36.30 | H38: 缺考 | I38: 缺考 | J38: =G38 -> 36.30
A39: 37 | B39: 铜仁市人民医院 | C39: 15临床护士 | D39: 冉鱼华 | E39: 20190622181 | F39: 80.25 | G39: 48.15 | H39: 86.67 | I39: 34.67 | J39: 82.82
A40: 38 | B40: 铜仁市人民医院 | C40: 15临床护士 | D40: 王小萍 | E40: 20190622110 | F40: 77.00 | G40: 46.20 | H40: 82.33 | I40: 32.93 | J40: 79.13
A41: 39 | B41: 铜仁市人民医院 | C41: 15临床护士 | D41: 李丽姣 | E41: 20190622109 | F41: 76.50 | G41: 45.90 | H41: 81.00 | I41: 32.40 | J41: 78.30
A42: 40 | B42: 铜仁市人民医院 | C42: 15临床护士 | D42: 张海燕 | E42: 20190622160 | F42: 74.13 | G42: 44.48 | H42: 82.67 | I42: 33.07 | J42: 77.54
A43: 41 | B43: 铜仁市人民医院 | C43: 15临床护士 | D43: 何琴 | E43: 20190622222 | F43: 74.00 | G43: 44.40 | H43: 89.00 | I43: 35.60 | J43: 80.00
A44: 42 | B44: 铜仁市人民医院 | C44: 15临床护士 | D44: 梁维维 | E44: 20190622177 | F44: 73.50 | G44: 44.10 | H44: 85.67 | I44: 34.27 | J44: 78.37
A45: 43 | B45: 铜仁市人民医院 | C45: 15临床护士 | D45: 杨艳飞 | E45: 20190622215 | F45: 73.50 | G45: 44.10 | H45: 缺考 | I45: 缺考 | J45: =G45 -> 44.10
A46: 44 | B46: 铜仁市人民医院 | C46: 15临床护士 | D46: 向彦霖 | E46: 20190622128 | F46: 73.38 | G46: 44.03 | H46: 84.33 | I46: 33.73 | J46: 77.76
A47: 45 | B47: 铜仁市人民医院 | C47: 15临床护士 | D47: 田仁军 | E47: 20190622136 | F47: 73.00 | G47: 43.80 | H47: 82.00 | I47: 32.80 | J47: 76.60
A48: 46 | B48: 铜仁市人民医院 | C48: 15临床护士 | D48: 崔异 | E48: 20190622113 | F48: 72.75 | G48: 43.65 | H48: 83.00 | I48: 33.20 | J48: 76.85
A49: 47 | B49: 铜仁市人民医院 | C49: 15临床护士 | D49: 田颖 | E49: 20190622176 | F49: 72.75 | G49: 43.65 | H49: 80.33 | I49: 32.13 | J49: 75.78
A50: 48 | B50: 铜仁市人民医院 | C50: 15临床护士 | D50: 向建妹 | E50: 20190622196 | F50: 72.75 | G50: 43.65 | H50: 83.00 | I50: 33.20 | J50: 76.85
A51: 49 | B51: 铜仁市人民医院 | C51: 15临床护士 | D51: 唐栏株 | E51: 20190622401 | F51: 72.75 | G51: 43.65 | H51: 82.33 | I51: 32.93 | J51: 76.58
A52: 50 | B52: 铜仁市人民医院 | C52: 15临床护士 | D52: 白雪 | E52: 20190622239 | F52: 72.63 | G52: 43.58 | H52: 82.00 | I52: 32.80 | J52: 76.38
A53: 51 | B53: 铜仁市人民医院 | C53: 15临床护士 | D53: 邓仕琴 | E53: 20190622132 | F53: 72.50 | G53: 43.50 | H53: 86.67 | I53: 34.67 | J53: 78.17
A54: 52 | B54: 铜仁市人民医院 | C54: 15临床护士 | D54: 蒋昕 | E54: 20190622125 | F54: 71.75 | G54: 43.05 | H54: 93.00 | I54: 37.20 | J54: 80.25
A55: 53 | B55: 铜仁市人民医院 | C55: 15临床护士 | D55: 胡小叶 | E55: 20190622168 | F55: 71.75 | G55: 43.05 | H55: 89.33 | I55: 35.73 | J55: 78.78
A56: 54 | B56: 铜仁市人民医院 | C56: 15临床护士 | D56: 安育琴 | E56: 20190622198 | F56: 71.75 | G56: 43.05 | H56: 缺考 | I56: 缺考 | J56: =G56 -> 43.05
A57: 55 | B57: 铜仁市人民医院 | C57: 15临床护士 | D57: 吴玥倩 | E57: 20190622227 | F57: 71.38 | G57: 42.83 | H57: 83.00 | I57: 33.20 | J57: 76.03
A58: 56 | B58: 铜仁市人民医院 | C58: 15临床护士 | D58: 杨琴 | E58: 20190622236 | F58: 69.50 | G58: 41.70 | H58: 85.67 | I58: 34.27 | J58: 75.97
A59: 57 | B59: 铜仁市人民医院 | C59: 15临床护士 | D59: 张运 | E59: 20190622106 | F59: 69.38 | G59: 41.63 | H59: 84.00 | I59: 33.60 | J59: 75.23
A60: 58 | B60: 铜仁市人民医院 | C60: 15临床护士 | D60: 何晴 | E60: 20190622162 | F60: 69.25 | G60: 41.55 | H60: 83.33 | I60: 33.33 | J60: 74.88
A61: 59 | B61: 铜仁市人民医院 | C61: 15临床护士 | D61: 姚杨杨 | E61: 20190622221 | F61: 69.25 | G61: 41.55 | H61: 80.67 | I61: 32.27 | J61: 73.82
A62: 60 | B62: 铜仁市人民医院 | C62: 15临床护士 | D62: 刘金容 | E62: 20190622154 | F62: 69.13 | G62: 41.48 | H62: 82.00 | I62: 32.80 | J62: 74.28
A63: 61 | B63: 铜仁市人民医院 | C63: 15临床护士 | D63: 胡玲 | E63: 20190622111 | F63: 68.38 | G63: 41.03 | H63: 82.33 | I63: 32.93 | J63: 73.96
A64: 62 | B64: 铜仁市人民医院 | C64: 15临床护士 | D64: 石珍 | E64: 20190622112 | F64: 68.38 | G64: 41.03 | H64: 83.00 | I64: 33.20 | J64: 74.23
A65: 63 | B65: 铜仁市人民医院 | C65: 15临床护士 | D65: 严霞 | E65: 20190622108 | F65: 68.25 | G65: 40.95 | H65: 89.33 | I65: 35.73 | J65: 76.68
A66: 64 | B66: 铜仁市人民医院 | C66: 15临床护士 | D66: 冉小艳 | E66: 20190622150 | F66: 68.13 | G66: 40.88 | H66: 83.00 | I66: 33.20 | J66: 74.08
A67: 65 | B67: 铜仁市人民医院 | C67: 15临床护士 | D67: 田茂琴 | E67: 20190622148 | F67: 67.88 | G67: 40.73 | H67: 83.33 | I67: 33.33 | J67: 74.06
A68: 66 | B68: 铜仁市人民医院 | C68: 15临床护士 | D68: 蒲建平 | E68: 20190622211 | F68: 67.40 | G68: =F68*0.6 -> 40.44 | H68: 缺考 | I68: 缺考 | J68: =G68 -> 40.44
A69: 67 | B69: 铜仁市人民医院 | C69: 16放疗师 | D69: 徐章丞 | E69: 20190622433 | F69: 32.00 | G69: 19.20 | H69: 89.17 | I69: =H69*0.4 -> 35.67 | J69: =G69+I69 -> 54.87
A70: 68 | B70: 铜仁市人民医院 | C70: 16放疗师 | D70: 但林 | E70: 20190622435 | F70: 29.75 | G70: 17.85 | H70: 85.00 | I70: 34.00 | J70: 51.85
A71: 69 | B71: 铜仁市人民医院 | C71: 16放疗师 | D71: 郭伟 | E71: 20190622428 | F71: 28.00 | G71: 16.80 | H71: 87.33 | I71: 34.93 | J71: 51.73
A72: 70 | B72: 铜仁市人民医院 | C72: 16放疗师 | D72: 袁倩 | E72: 20190622430 | F72: 28.00 | G72: 16.80 | H72: 92.33 | I72: 36.93 | J72: 53.73
A73: 71 | B73: 铜仁市人民医院 | C73: 16放疗师 | D73: 王孔义 | E73: 20190622431 | F73: 27.25 | G73: 16.35 | H73: 85.33 | I73: 34.13 | J73: 50.48
A74: 72 | B74: 铜仁市人民医院 | C74: 16放疗师 | D74: 饶洪飞 | E74: 20190622436 | F74: 26.50 | G74: 15.90 | H74: 83.33 | I74: 33.33 | J74: 49.23
A75: 73 | B75: 铜仁市人民医院 | C75: 17临床营养师 | D75: 付鹭飞 | E75: 20190622260 | F75: 59.50 | G75: 35.70 | H75: 87.67 | I75: 35.07 | J75: 70.77
A76: 74 | B76: 铜仁市人民医院 | C76: 17临床营养师 | D76: 王德辉 | E76: 20190622249 | F76: 58.25 | G76: 34.95 | H76: 86.17 | I76: 34.47 | J76: 69.42
A77: 75 | B77: 铜仁市人民医院 | C77: 17临床营养师 | D77: 毕晓宁 | E77: 20190622243 | F77: 54.75 | G77: 32.85 | H77: 89.33 | I77: 35.73 | J77: 68.58
A78: 76 | B78: 铜仁市人民医院 | C78: 18★病案管理员 | D78: 熊惠文 | E78: 20190622022 | F78: 55.25 | G78: 33.15 | H78: 82.67 | I78: 33.07 | J78: 66.22
A79: 77 | B79: 铜仁市人民医院 | C79: 18★病案管理员 | D79: 杜丽亚 | E79: 20190622014 | F79: 53.25 | G79: 31.95 | H79: 77.00 | I79: 30.80 | J79: 62.75
A80: 78 | B80: 铜仁市人民医院 | C80: 18★病案管理员 | D80: 张娇 | E80: 20190622027 | F80: 50.25 | G80: 30.15 | H80: 80.33 | I80: 32.13 | J80: 62.28
A81: 79 | B81: 铜仁市人民医院 | C81: 18★病案管理员 | D81: 刘润康 | E81: 20190622057 | F81: 49.00 | G81: 29.40 | H81: 89.67 | I81: 35.87 | J81: 65.27
A82: 80 | B82: 铜仁市人民医院 | C82: 18★病案管理员 | D82: 黄卓琳 | E82: 20190622017 | F82: 48.00 | G82: 28.80 | H82: 70.67 | I82: 28.27 | J82: 57.07
A83: 81 | B83: 铜仁市人民医院 | C83: 18★病案管理员 | D83: 龙丹 | E83: 20190622025 | F83: 47.75 | G83: 28.65 | H83: 70.00 | I83: 28.00 | J83: 56.65
A84: 82 | B84: 铜仁市人民医院 | C84: 18★病案管理员 | D84: 李朝兵 | E84: 20190622060 | F84: 47.50 | G84: 28.50 | H84: 80.67 | I84: 32.27 | J84: 60.77
A85: 83 | B85: 铜仁市人民医院 | C85: 18★病案管理员 | D85: 吴落梅 | E85: 20190622052 | F85: 46.75 | G85: 28.05 | H85: 74.00 | I85: 29.60 | J85: 57.65
A86: 84 | B86: 铜仁市人民医院 | C86: 18★病案管理员 | D86: 吴静慧 | E86: 20190622013 | F86: 46.50 | G86: 27.90 | H86: 84.67 | I86: 33.87 | J86: 61.77
A87: 85 | B87: 铜仁市妇计中心 | C87: 19★B超医师 | D87: 李昭琴 | E87: 20190622289 | F87: 74.57 | G87: 44.74 | H87: 93.00 | I87: 37.20 | J87: 81.94
A88: 86 | B88: 铜仁市妇计中心 | C88: 20★妇产科医师 | D88: 杨应堂 | E88: 20190622290 | F88: 76.25 | G88: 45.75 | H88: 82.00 | I88: 32.80 | J88: 78.55
A89: 87 | B89: 铜仁市妇计中心 | C89: 20★妇产科医师 | D89: 但维桂 | E89: 20190622294 | F89: 72.00 | G89: 43.20 | H89: 84.67 | I89: 33.87 | J89: 77.07
A90: 88 | B90: 铜仁市妇计中心 | C90: 20★妇产科医师 | D90: 杨江南 | E90: 20190622291 | F90: 69.75 | G90: 41.85 | H90: 86.33 | I90: 34.53 | J90: 76.38
A91: 89 | B91: 铜仁市妇计中心 | C91: 20★妇产科医师 | D91: 瞿亚倩 | E91: 20190622295 | F91: 67.00 | G91: 40.20 | H91: 84.67 | I91: 33.87 | J91: 74.07
A92: 90 | B92: 铜仁市妇计中心 | C92: 20★妇产科医师 | D92: 冉勇 | E92: 20190622293 | F92: 63.50 | G92: 38.10 | H92: 83.00 | I92: 33.20 | J92: 71.30
A93: 91 | B93: 铜仁市妇计中心 | C93: 20★妇产科医师 | D93: 李美梅 | E93: 20190622292 | F93: 52.25 | G93: 31.35 | H93: 82.33 | I93: 32.93 | J93: 64.28
A94: 92 | B94: 铜仁市妇计中心 | C94: 21★儿科医师 | D94: 张英 | E94: 20190622300 | F94: 68.75 | G94: 41.25 | H94: 82.33 | I94: 32.93 | J94: 74.18
A95: 93 | B95: 铜仁市妇计中心 | C95: 21★儿科医师 | D95: 赵安 | E95: 20190622299 | F95: 62.50 | G95: 37.50 | H95: 81.33 | I95: 32.53 | J95: 70.03
A96: 94 | B96: 铜仁市妇计中心 | C96: 21★儿科医师 | D96: 杨磊 | E96: 20190622297 | F96: 43.00 | G96: 25.80 | H96: 81.33 | I96: 32.53 | J96: 58.33
A97: 95 | B97: 铜仁市妇计中心 | C97: 21★儿科医师 | D97: 谯潜海 | E97: 20190622298 | F97: 25.75 | G97: 15.45 | H97: 缺考 | I97: 缺考 | J97: =G97 -> 15.45
A98: 96 | B98: 铜仁市妇计中心 | C98: 22★口腔医学 | D98: 陈忠兰 | E98: 20190622439 | F98: 76.50 | G98: 45.90 | H98: 84.33 | I98: 33.73 | J98: 79.63
A99: 97 | B99: 铜仁市妇计中心 | C99: 22★口腔医学 | D99: 史文贵 | E99: 20190622440 | F99: 73.25 | G99: 43.95 | H99: 84.00 | I99: 33.60 | J99: 77.55
A100: 98 | B100: 铜仁市妇计中心 | C100: 22★口腔医学 | D100: 谌于男 | E100: 20190622437 | F100: 70.50 | G100: 42.30 | H100: 84.50 | I100: 33.80 | J100: 76.10
A101: 99 | B101: 铜仁市妇计中心 | C101: 22★口腔医学 | D101: 李洋宇 | E101: 20190622438 | F101: 63.75 | G101: 38.25 | H101: 83.00 | I101: 33.20 | J101: 71.45
A102: 100 | B102: 铜仁市妇计中心 | C102: 23卫生管理师 | D102: 蒋文洁 | E102: 20190622307 | F102: 56.25 | G102: 33.75 | H102: 81.67 | I102: 32.67 | J102: 66.42
A103: 101 | B103: 铜仁市妇计中心 | C103: 23卫生管理师 | D103: 肖春燕 | E103: 20190622306 | F103: 54.25 | G103: 32.55 | H103: 71.00 | I103: 28.40 | J103: 60.95
A104: 102 | B104: 铜仁市妇计中心 | C104: 23卫生管理师 | D104: 杨易林 | E104: 20190622301 | F104: 53.25 | G104: 31.95 | H104: 缺考 | I104: 缺考 | J104: =G104 -> 31.95
A105: 103 | B105: 铜仁市妇计中心 | C105: 23卫生管理师 | D105: 胡丽 | E105: 20190622308 | F105: 50.50 | G105: 30.30 | H105: 84.33 | I105: =H105*0.4 -> 33.73 | J105: =G105+I105 -> 64.03
A106: 104 | B106: 铜仁市妇计中心 | C106: 23卫生管理师 | D106: 胡学容 | E106: 20190622321 | F106: 50.25 | G106: 30.15 | H106: 76.00 | I106: =H106*0.4 -> 30.40 | J106: =G106+I106 -> 60.55
A107: 105 | B107: 铜仁市妇计中心 | C107: 23卫生管理师 | D107: 田松林 | E107: 20190622328 | F107: 49.75 | G107: 29.85 | H107: 缺考 | I107: 缺考 | J107: =G107 -> 29.85
A108: 106 | B108: 铜仁市中心血站 | C108: 24检验人员 | D108: 刘芬 | E108: 20190622345 | F108: 75.85 | G108: 45.51 | H108: 88.67 | I108: =H108*0.4 -> 35.47 | J108: =G108+I108 -> 80.98
A109: 107 | B109: 铜仁市中心血站 | C109: 24检验人员 | D109: 杜莎莎 | E109: 20190622338 | F109: 64.10 | G109: 38.46 | H109: 85.67 | I109: =H109*0.4 -> 34.27 | J109: =G109+I109 -> 72.73
A110: 108 | B110: 铜仁市中心血站 | C110: 24检验人员 | D110: 张悦 | E110: 20190622350 | F110: 63.75 | G110: 38.25 | H110: 91.00 | I110: =H110*0.4 -> 36.40 | J110: =G110+I110 -> 74.65

Sheet 综合成绩排序版
A1: 2019年铜仁市卫生健康事业单位公开招聘新增人员进入体检名单
A2: 序号 | B2: 报考单位 | C2: 报考职位及代码 | D2: 姓名 | E2: 准考证号 | F2: 体检 | G2: 备注
A3: 1 | B3: 铜仁市人民医院 | C3: 01★外科医师 | D3: 陶兴艳 | F3: 是 | G3: 规培生
A4: 2 | B4: 铜仁市人民医院 | C4: 02外科医师 | D4: 张虹雨 | E4: 20190622042 | F4: 是 | G4: 01职位调剂2人到02职位，共招4个岗位。
A5: 3 | B5: 铜仁市人民医院 | C5: 02外科医师 | D5: 程坤 | E5: 20190622033 | F5: 是
A6: 4 | B6: 铜仁市人民医院 | C6: 02外科医师 | D6: 王婷 | E6: 20190622031 | F6: 是
A7: 5 | B7: 铜仁市人民医院 | C7: 02外科医师 | D7: 孙洁 | E7: 20190622043 | F7: 是
A8: 6 | B8: 铜仁市人民医院 | C8: 04内科医师 | D8: 詹琴 | E8: 20190622377 | F8: 是 | G8: 03职位调剂3人到04职位，共招5个岗位。
A9: 7 | B9: 铜仁市人民医院 | C9: 04内科医师 | D9: 代红 | E9: 20190622371 | F9: 是
A10: 8 | B10: 铜仁市人民医院 | C10: 04内科医师 | D10: 张正香 | E10: 20190622370 | F10: 是
A11: 9 | B11: 铜仁市人民医院 | C11: 04内科医师 | D11: 凡勇江 | E11: 20190622380 | F11: 是
A12: 10 | B12: 铜仁市人民医院 | C12: 05★妇产科医师 | D12: 杨果 | F12: 是 | G12: 规培生
A13: 11 | B13: 铜仁市人民医院 | C13: 06★妇产科医师 | D13: 郎凤琴 | E13: 20190622389 | F13: 是 | G13: 05职位调剂2人到06职位，共招3个岗位。
A14: 12 | B14: 铜仁市人民医院 | C14: 06★妇产科医师 | D14: 黄洁文 | E14: 20190622393 | F14: 是
A15: 13 | B15: 铜仁市人民医院 | C15: 06★妇产科医师 | D15: 向欣 | E15: 20190622388 | F15: 是
A16: 14 | B16: 铜仁市人民医院 | C16: 07★麻醉医师 | D16: 周才珺 | F16: 是 | G16: 规培生
A17: 15 | B17: 铜仁市人民医院 | C17: 07★麻醉医师 | D17: 代文丽 | F17: 是 | G17: 规培生
A18: 16 | B18: 铜仁市人民医院 | C18: 08★麻醉医师 | D18: 王丹 | E18: 20190622418 | F18: 是 | G18: 07职位调剂1人到08职位，共招2各岗位。
A19: 17 | B19: 铜仁市人民医院 | C19: 08★麻醉医师 | D19: 李鹏鹏 | E19: 20190622416 | F19: 是
A20: 18 | B20: 铜仁市人民医院 | C20: 10★超声医师 | D20: 姚冉 | E20: 20190622061 | F20: 是 | G20: 09职位调剂3人到10职位，共招4个岗位。
A21: 19 | B21: 铜仁市人民医院 | C21: 10★超声医师 | D21: 安智慧 | E21: 20190622063 | F21: 是
A22: 20 | B22: 铜仁市人民医院 | C22: 10★超声医师 | D22: 蒋思迪 | E22: 20190622064 | F22: 是
A23: 21 | B23: 铜仁市人民医院 | C23: 11★儿科医师 | D23: 李成波 | F23: 是 | G23: 规培生
A24: 22 | B24: 铜仁市人民医院 | C24: 11★儿科医师 | D24: 田威 | F24: 是 | G24: 规培生
A25: 23 | B25: 铜仁市人民医院 | C25: 12★儿科医师 | D25: 张真 | E25: 20190622075 | F25: 是 | G25: 11职位调剂4人到12职位，共招8个岗位。
A26: 24 | B26: 铜仁市人民医院 | C26: 12★儿科医师 | D26: 汪鑫洋 | E26: 20190622066 | F26: 是
A27: 25 | B27: 铜仁市人民医院 | C27: 12★儿科医师 | D27: 王杉 | E27: 20190622084 | F27: 是
A28: 26 | B28: 铜仁市人民医院 | C28: 12★儿科医师 | D28: 黄永倚 | E28: 20190622076 | F28: 是
A29: 27 | B29: 铜仁市人民医院 | C29: 12★儿科医师 | D29: 李黎 | E29: 20190622081 | F29: 是
A30: 28 | B30: 铜仁市人民医院 | C30: 12★儿科医师 | D30: 黄浩 | E30: 20190622065 | F30: 是
A31: 29 | B31: 铜仁市人民医院 | C31: 12★儿科医师 | D31: 刘涛 | E31: 20190622079 | F31: 是
A32: 30 | B32: 铜仁市人民医院 | C32: 13康复治疗师 | D32: 石慧 | E32: 20190622283 | F32: 是
A33: 31 | B33: 铜仁市人民医院 | C33: 15临床护士 | D33: 冉鱼华 | E33: 20190622181 | F33: 是
A34: 32 | B34: 铜仁市人民医院 | C34: 15临床护士 | D34: 蒋昕 | E34: 20190622125 | F34: 是
A35: 33 | B35: 铜仁市人民医院 | C35: 15临床护士 | D35: 何琴 | E35: 20190622222 | F35: 是
A36: 34 | B36: 铜仁市人民医院 | C36: 15临床护士 | D36: 王小萍 | E36: 20190622110 | F36: 是
A37: 35 | B37: 铜仁市人民医院 | C37: 15临床护士 | D37: 胡小叶 | E37: 20190622168 | F37: 是
A38: 36 | B38: 铜仁市人民医院 | C38: 15临床护士 | D38: 梁维维 | E38: 20190622177 | F38: 是
A39: 37 | B39: 铜仁市人民医院 | C39: 15临床护士 | D39: 李丽姣 | E39: 20190622109 | F39: 是
A40: 38 | B40: 铜仁市人民医院 | C40: 15临床护士 | D40: 邓仕琴 | E40: 20190622132 | F40: 是
A41: 39 | B41: 铜仁市人民医院 | C41: 15临床护士 | D41: 向彦霖 | E41: 20190622128 | F41: 是
A42: 40 | B42: 铜仁市人民医院 | C42: 15临床护士 | D42: 张海燕 | E42: 20190622160 | F42: 是
A43: 41 | B43: 铜仁市人民医院 | C43: 17临床营养师 | D43: 付鹭飞 | E43: 20190622260 | F43: 是
A44: 42 | B44: 铜仁市人民医院 | C44: 18★病案管理员 | D44: 熊惠文 | E44: 20190622022 | F44: 是
A45: 43 | B45: 铜仁市人民医院 | C45: 18★病案管理员 | D45: 刘润康 | E45: 20190622057 | F45: 是
A46: 44 | B46: 铜仁市人民医院 | C46: 18★病案管理员 | D46: 杜丽亚 | E46: 20190622014 | F46: 是
A47: 45 | B47: 铜仁市妇计中心 | C47: 19★B超医师 | D47: 李昭琴 | E47: 20190622289 | F47: 是
A48: 46 | B48: 铜仁市妇计中心 | C48: 20★妇产科医师 | D48: 杨应堂 | E48: 20190622290 | F48: 是
A49: 47 | B49: 铜仁市妇计中心 | C49: 20★妇产科医师 | D49: 但维桂 | E49: 20190622294 | F49: 是
A50: 48 | B50: 铜仁市妇计中心 | C50: 21★儿科医师 | D50: 张英 | E50: 20190622300 | F50: 是
A51: 49 | B51: 铜仁市妇计中心 | C51: 21★儿科医师 | D51: 赵安 | E51: 20190622299 | F51: 是
A52: 50 | B52: 铜仁市妇计中心 | C52: 22★口腔医学 | D52: 陈忠兰 | E52: 20190622439 | F52: 是
A53: 51 | B53: 铜仁市妇计中心 | C53: 22★口腔医学 | D53: 谌于男 | E53: 20190622437 | F53: 是
A54: 52 | B54: 铜仁市妇计中心 | C54: 23卫生管理师 | D54: 蒋文洁 | E54: 20190622307 | F54: 是
A55: 53 | B55: 铜仁市妇计中心 | C55: 23卫生管理师 | D55: 胡丽 | E55: 20190622308 | F55: 是
A56: 54 | B56: 铜仁市中心血站 | C56: 24检验人员 | D56: 刘芬 | E56: 20190622345 | F56: 是
